Cogmind - Beta 14 @@@ ROGUE MODE // 2025.03.18 @ 21:31:24 Player: canerib Result: Destroyed by Y-54 Guardian with Flak Gun Performance ------------- Evolutions (3) 1500 Regions Visited (7) 1400 Robots Destroyed (75) 375 Value Destroyed (2533) 2533 Prototype IDs (8) 160 Alien Tech Used (0) 0 Bonus (0) 0 TOTAL SCORE: 5968 Bonus ------- None Cogmind --------- Core Integrity 0/700 Matter 300/300 Energy 100/100 System Corruption 3% Temperature Cool (6) Movement Flying (29) Location -7/Storage Parts ------- > --- POWER (1) -------- (None) > --- PROPULSION (4) --- Improved Cesium-ion Thruster Improved Cesium-ion Thruster Improved Cesium-ion Thruster > --- UTILITY (6) ------ Improved Heat Sink Improved Terrain Scan Processor Improved Targeting Computer Actuator Array Actuator Array Hacking Suite > --- WEAPON (2) ------- Spear Spear > --- INVENTORY (5) ---- Improved Cesium-ion Thruster Improved Melee Analysis Suite Heavy Rocket Launcher Powered Hammer Spear Peak State ------------ > --- POWER ------------ Light Nuclear Core > --- PROPULSION ------- Improved Cesium-ion Thruster Improved Cesium-ion Thruster Improved Cesium-ion Thruster Cooled VTOL Module > --- UTILITY ---------- Improved Heat Sink Improved Signal Interpreter Improved Terrain Scan Processor Improved Targeting Computer Actuator Array Actuator Array > --- WEAPON ----------- Spear Spear > --- INVENTORY -------- Improved Cesium-ion Thruster Hacking Suite Heavy Rocket Launcher Powered Hammer Spear [Rating: 50] Favorites ----------- Power Light Nuclear Core Engine Ion Engine Power Core Light Nuclear Core Propulsion Aluminum Leg Treads Light Treads Leg Aluminum Leg Flight Unit Cooled VTOL Module Utility Improved Targeting Computer Device Actuator Array Storage Medium Storage Unit Processor Improved Targeting Computer Hackware Hacking Suite Protection Hardened Light Armor Plating Weapon Assault Rifle Energy Gun Particle Gun Ballistic Gun Assault Rifle Launcher Grenade Launcher Special Weapon Mining Laser Impact Weapon Powered Hammer Slashing Weapon Great Axe Piercing Weapon Spear Build | -11 -10 -9 -8 -7 -7 -7 -7 ------- Run | Yrd Mat Mat Mat Fac Was Fac Sto Slots Evolved 6 | . . 2 2 2 . . . Power . | . . . . . . . . Propulsion 2 | . . . 1 1 . . . Utility 4 | . . 2 1 1 . . . Weapon . | . . . . . . . . Parts Attached 117 | 8 8 24 30 8 5 17 17 Power 13 | 1 1 3 2 1 . 3 2 Engine 9 | 1 1 3 . 1 . 2 1 Core 4 | . . . 2 . . 1 1 Reactor . | . . . . . . . . Propulsion 36 | 2 3 5 7 3 1 6 9 Treads 1 | . . . . . . . 1 Leg 28 | 2 3 5 7 3 1 6 1 Wheel . | . . . . . . . . Hover . | . . . . . . . . Flight 7 | . . . . . . . 7 Utility 38 | 2 1 7 15 2 4 4 3 Device 24 | 1 . 5 8 2 2 4 2 Storage 5 | 1 1 . 2 . 1 . . Processor 6 | . . 2 3 . 1 . . Hackware 1 | . . . . . . . 1 Protection 2 | . . . 2 . . . . Artifact . | . . . . . . . . Weapon 30 | 3 3 9 6 2 . 4 3 Energy Gun 11 | . . 3 5 1 . 2 . Energy Cannon . | . . . . . . . . Ballistic Gun 9 | 3 1 3 1 1 . . . Ballistic Cannon . | . . . . . . . . Launcher 1 | . . 1 . . . . . Special Weapon 1 | . 1 . . . . . . Impact Weapon 2 | . . . . . . 1 1 Slashing Weapon 4 | . 1 2 . . . 1 . Piercing Weapon 2 | . . . . . . . 2 Special Melee Weapon . | . . . . . . . . Unidentified Prototypes 7 | . . 1 3 1 . . 2 Parts Lost 31 | . . 9 3 4 5 1 9 Power 3 | . . 2 . . . . 1 Propulsion 13 | . . 1 . 3 3 . 6 Utility 7 | . . 3 1 . 1 1 1 Weapon 8 | . . 3 2 1 1 . 1 Highest Loss Streak 7 | . . 7 2 1 4 1 3 To Critical Strikes . | . . . . . . . . Average Slot Usage (%) 91 | . 99 92 98 98 55 75 86 Engine 5 | . 14 9 1 3 3 4 3 Core 2 | . . . 7 3 . . . Leg 22 | . 28 21 27 29 12 24 7 Flight 2 | . . . . . . . 14 Device 16 | . 14 23 12 22 13 7 21 Storage 6 | . 14 11 9 7 3 . . Processor 14 | . . 4 16 15 15 23 22 Protection 1 | . . . 5 . . . . Energy Gun 7 | . . 8 14 9 3 9 . Ballistic Gun 6 | . 25 10 3 3 3 . . Slashing Weapon 1 | . 1 1 . . . 2 2 Piercing Weapon 1 | . . . . . . . 8 Peak Build Rating 50 | 7 8 15 31 40 36 44 50 Average Rating 26 | 5 7 11 26 35 22 30 41 On Entrance 19 | . 7 8 15 29 36 15 42 Naked Turns . | . . . . . . . . Heaviest Build 37 | 13 20 23 28 32 32 37 37 Greatest Support 62 | 20 20 32 47 57 37 62 62 Greatest Overweight (x) 11 | . . . . . 3 . 11 Average Overweight (x) . | . . . . . . . . Largest Inventory Capacity 10 | 8 10 10 10 10 10 5 5 Average Capacity 8 | 7 8 10 10 10 7 5 5 Most Carried 10 | 4 10 10 10 10 10 5 5 Average Carried 7 | 1 7 9 9 8 7 4 4 Final Capacity 10 | 8 10 10 10 10 5 5 5 Final Carried 10 | 4 10 10 10 10 2 5 5 Class Distribution -------------------- 48% | Scavenger-Mutant 31% | Mutant 12% | Gladiator 6% | Sprinter Dominant Class ---------------- Mutant | -10/Materials Mutant | -9/Materials Scavenger-Mutant | -8/Materials Scavenger-Mutant | -7/Factory Mutant | -7/Waste Scavenger-Mutant | -7/Factory Gladiator | -7/Storage Resources | -11 -10 -9 -8 -7 -7 -7 -7 ----------- Run | Yrd Mat Mat Mat Fac Was Fac Sto Matter Collected 1997 | 334 220 409 476 150 . 221 187 Remotely 108 | . . 108 . . . . . Salvage Created 3090 | 146 220 459 862 267 . 451 685 Parts 165 | 7 14 31 57 10 . 23 23 Haulers Intercepted 8 | . . . 3 1 . 1 3 Recyclers Shooed 2 | 1 . . 1 . . . . Parts Field Recycled . | . . . . . . . . Retrieved Matter . | . . . . . . . . Parts Self-Destructed . | . . . . . . . . Prevented . | . . . . . . . . Kills | -11 -10 -9 -8 -7 -7 -7 -7 ------- Run | Yrd Mat Mat Mat Fac Was Fac Sto Combat Hostiles Destroyed 57 | . 7 13 13 6 . 9 9 Melee 8 | . . 1 . . . 1 6 Guns 41 | . 7 9 12 6 . 7 . AOE 2 | . . 2 . . . . . Classes Destroyed 13 | 2 2 3 3 1 . 2 . Worker 2 | . . . . 1 . 1 . Tunneler 2 | 2 . . . . . . . Hauler 8 | . . . 3 1 . 1 3 Recycler 2 | 1 . . 1 . . . . Operator 1 | . . 1 . . . . . Watcher 3 | . . 1 2 . . . . Swarmer 9 | . 3 4 . 2 . . . Grunt 26 | . 4 7 5 2 . 5 3 Brawler 1 | . . . . . . 1 . Duelist 1 | . . . 1 . . . . Sentry 13 | . . 2 4 1 . 1 5 Hunter 5 | . . . 3 1 . . 1 Programmer 2 | . . . . . . 2 . Best Kill Streak 5 | 2 3 5 3 2 . 3 2 Combat Bots Only 5 | . 3 5 3 2 . 2 2 Max Kills in Single Turn 2 | 1 1 2 1 2 . 1 1 Gunslinging 1 | . . 1 . . . . . Exploded 2 | . . 2 . . . . . Melee 1 | . . 1 . . . 1 1 Uniques/NPCs Destroyed . | . . . . . . . . Combat | -11 -10 -9 -8 -7 -7 -7 -7 -------- Run | Yrd Mat Mat Mat Fac Was Fac Sto Hostile Shots Fired 568 | . 29 87 80 67 5 61 239 Missed 185 | . 5 22 15 26 1 22 94 Damage Taken 5038 | . 245 1062 974 637 154 546 1420 Core 1074 | . 26 226 117 191 83 106 325 Absorbed by Shields . | . . . . . . . . Regen/Repaired (Parts) 177 | . . . 46 . . . 131 Core Remaining (%) 77 | 100 89 43 78 . . . . Volleys Fired 185 | 9 23 39 64 28 1 21 . Largest 2 | 2 2 2 2 2 2 2 . Hottest 160 | 40 120 105 130 120 108 160 . Shots Fired 344 | 18 44 69 123 49 2 39 . Gun 341 | 18 42 68 123 49 2 39 . Cannon . | . . . . . . . . Launcher 1 | . . 1 . . . . . Special 2 | . 2 . . . . . . Kinetic 161 | 18 42 52 32 16 1 . . Thermal 182 | . 2 16 91 33 1 39 . Explosive 1 | . . 1 . . . . . Electromagnetic . | . . . . . . . . Robot Hit Streak 21 | 4 19 10 14 21 7 11 . Robot Miss Streak 5 | 2 3 3 3 5 3 4 . Penetration Max . | . . . . . . . . Secondary Targets 3 | . 1 2 . . . . . Max Gunslinging Chain 1 | . 1 1 . . . . . Shots Hit Robots 304 | 10 29 60 81 42 2 40 40 Core Hits 148 | 4 13 24 37 30 . 26 14 Critical Kills 2 | . . 1 . . . 1 . Critical Parts Destroyed 5 | . . . 1 . . 3 1 Critical Strikes 16 | . . 2 4 2 . 4 4 Burn 6 | . . 1 3 2 . . . Destroy 2 | . . 1 1 . . . . Smash 5 | . . . . . . 4 1 Sever 2 | . . . . . . . 2 Impale 1 | . . . . . . . 1 Melee Attacks 76 | . 1 11 . . . 7 57 Impact 26 | . . . . . . 6 20 Slashing 19 | . 1 11 . . . 1 6 Piercing 31 | . . . . . . . 31 Sneak Attacks 5 | . . . . . . . 5 Combat Hostiles 1 | . . . . . . . 1 Follow-up Attacks 9 | . . . . . . . 9 Damage Inflicted 6230 | 139 353 933 1328 773 47 1080 1577 Guns 4091 | 139 353 673 1328 773 47 778 . Cannons . | . . . . . . . . Explosions 117 | . . 117 . . . . . Melee 2022 | . . 143 . . . 302 1577 Ramming . | . . . . . . . . Kinetic 1700 | 139 353 529 366 278 35 . . Thermal 2391 | . . 144 962 495 12 778 . Explosive 117 | . . 117 . . . . . Electromagnetic . | . . . . . . . . Impact 748 | . . . . . . 302 446 Slashing 345 | . . 143 . . . . 202 Piercing 929 | . . . . . . . 929 Highest Corruption 3 | . . 1 . . . 3 3 Average Corruption 2 | . . 1 . . . 3 3 Corruption Purged . | . . . . . . . . Corruption Blocked . | . . . . . . . . Effects 22 | . . 4 . . . 4 14 Message Errors 6 | . . 2 . . . 1 3 Matter Fused 7 | . . 1 . . . 1 5 Heat Flow Errors 5 | . . 1 . . . 1 3 Energy Discharges 2 | . . . . . . 1 1 Data Loss (minor) 2 | . . . . . . . 2 Overload Shots . | . . . . . . . . Overflow Damage 224 | . . . . . . 154 70 Projectiles . | . . . . . . . . Explosions . | . . . . . . . . Melee 224 | . . . . . . 154 70 Knockbacks 3 | . . . . . . 3 . Impact 3 | . . . . . . 3 . Kinetic . | . . . . . . . . Secondary . | . . . . . . . . Self-Inflicted Damage 1 | . . 1 . . . . . Shots 1 | . . 1 . . . . . Rammed . | . . . . . . . . Targets Rammed . | . . . . . . . . Kicked . | . . . . . . . . Crushed . | . . . . . . . . Highest Temperature 515 | . 20 240 341 . . 515 132 Average Temperature 125 | . 8 47 103 . . 200 71 Received Heat Transfer 1437 | . 90 423 333 138 . 153 300 Effects 12 | . . . 4 . . 8 . Shutdowns 2 | . . . . . . 2 . Energy Bleed 6 | . . . 4 . . 2 . Interference 3 | . . . . . . 3 . Damage (major) 1 | . . . . . . 1 . Siege Activations . | . . . . . . . . Robots Corrupted 3 | . . . . . . 1 2 Combat Hostiles 3 | . . . . . . 1 2 Parts Fried 3 | . . . . . . 1 2 Impact Corruptions 10 | . . . . . . 6 4 Robots Melted 2 | . . 1 1 . . . . Combat Hostiles 2 | . . 1 1 . . . . Parts Melted 13 | . . 3 5 2 . 2 1 Heat Transferred 5777 | . . 409 2405 1213 25 1725 . Parts Sabotaged . | . . . . . . . . Parts Stolen . | . . . . . . . . Parts Stripped . | . . . . . . . . Power Chain Reactions . | . . . . . . . . Alert | -11 -10 -9 -8 -7 -7 -7 -7 ------- Run | Yrd Mat Mat Mat Fac Was Fac Sto Peak Influence 317 | 15 141 317 307 162 35 194 229 Initial 68 | . 9 21 68 46 35 14 37 Average 104 | 5 48 181 157 73 24 53 125 Maximum Alert Level 1 | . . 1 1 . . . 1 Low Security (%) 85 | 100 100 67 69 100 100 100 74 Level 1 14 | . . 32 30 . . . 25 Level 2 . | . . . . . . . . Level 3 . | . . . . . . . . Level 4 . | . . . . . . . . Level 5 . | . . . . . . . . High Security . | . . . . . . . . Max Security . | . . . . . . . . Squads Dispatched 14 | . 2 2 3 1 . 3 3 Investigation 1 | . . . 1 . . . . Extermination 1 | . . . . . . 1 . Reinforcement 10 | . 2 2 1 1 . 2 2 Assault . | . . . . . . . . Garrison 2 | . . . 1 . . . 1 Intercept . | . . . . . . . . Searches Triggered . | . . . . . . . . Construction Impeded . | . . . . . . . . Haulers Reinforced 2 | . . . . . . . 2 Active Scanning Responses . | . . . . . . . . Cargo Convoy Interrupts . | . . . . . . . . Stealth | -11 -10 -9 -8 -7 -7 -7 -7 --------- Run | Yrd Mat Mat Mat Fac Was Fac Sto Distress Signals 1 | . . . . . . . 1 Communications Jammed . | . . . . . . . . Distress Signals . | . . . . . . . . Times Spotted 97 | . 10 16 24 10 6 11 20 Peak Tracking Total 10 | . 3 6 4 3 6 4 10 Tactical Retreats 3 | . . . . 1 . . 2 Traps | -11 -10 -9 -8 -7 -7 -7 -7 ------- Run | Yrd Mat Mat Mat Fac Was Fac Sto Traps Triggered 4 | . . . 1 3 . . . Indirectly . | . . . . . . . . Trap Hack Attempts . | . . . . . . . . Triggered . | . . . . . . . . Disarmed . | . . . . . . . . Reprogrammed . | . . . . . . . . Reused . | . . . . . . . . Traps Extracted . | . . . . . . . . Installed . | . . . . . . . . Triggered . | . . . . . . . . Machines | -11 -10 -9 -8 -7 -7 -7 -7 ---------- Run | Yrd Mat Mat Mat Fac Was Fac Sto Machines Disabled 4 | . . 2 1 . . . 1 Max in Single Turn 1 | . . 1 1 . . . 1 Machines Repaired . | . . . . . . . . Machines Dismantled . | . . . . . . . . Machines Sabotaged . | . . . . . . . . Overloaded Fab Kills . | . . . . . . . . Hacking | -11 -10 -9 -8 -7 -7 -7 -7 --------- Run | Yrd Mat Mat Mat Fac Was Fac Sto Machines Accessed 20 | . 4 2 5 3 . . 6 Terminals 13 | . 4 1 3 1 . . 4 Fabricators . | . . . . . . . . Repair Stations 3 | . . . 1 1 . . 1 Recycling Units 1 | . . . . . . . 1 Scanalyzers 3 | . . 1 1 1 . . . Garrison Access . | . . . . . . . . Total Hacks 59 | . 12 9 21 5 . . 12 Successful 31 | . 8 6 9 3 . . 5 Failed 28 | . 4 3 12 2 . . 7 Catastrophic 5 | . 1 . . 1 . . 3 Database Lockouts . | . . . . . . . . Manual 27 | . 9 3 8 2 . . 5 Terminals 39 | . 12 4 13 2 . . 8 Fabricators . | . . . . . . . . Repair Stations 6 | . . . 3 1 . . 2 Recycling Units 2 | . . . . . . . 2 Scanalyzers 12 | . . 5 5 2 . . . Garrison Access . | . . . . . . . . Terminal Hacks 10 | . 4 1 3 . . . 2 Open Door 1 | . . . . . . . 1 Level Access Points 1 | . 1 . . . . . . Branch Access Points 1 | . . . . . . . 1 Terminal Index 1 | . 1 . . . . . . Alert Level 3 | . 1 . 2 . . . . Unreport Threat 2 | . 1 . 1 . . . . Dispatch Records 1 | . . 1 . . . . . Fabricator Hacks . | . . . . . . . . Repair Station Hacks 5 | . . . 2 1 . . 2 Scan Component 3 | . . . 1 1 . . 1 Repair 2 | . . . 1 . . . 1 Recycling Unit Hacks 1 | . . . . . . . 1 Report Inventory 1 | . . . . . . . 1 Scanalyzer 9 | . . 5 2 2 . . . Insert Component 4 | . . 2 1 1 . . . Analyze 5 | . . 3 1 1 . . . Garrison Access Hacks . | . . . . . . . . Unauthorized Hacks 6 | . 4 . 2 . . . . Terminals 6 | . 4 . 2 . . . . Assimilate 1 | . 1 . . . . . . Botnet 5 | . 3 . 2 . . . . Fabricators . | . . . . . . . . Repair Stations . | . . . . . . . . Recycling Units . | . . . . . . . . Scanalyzers . | . . . . . . . . Garrison Access . | . . . . . . . . Data Cores Recovered . | . . . . . . . . Used . | . . . . . . . . Hacking Detections 19 | . 4 2 5 3 . . 5 Full Trace Events . | . . . . . . . . Feedback Events . | . . . . . . . . Feedback Blocked . | . . . . . . . . Robot Schematics Acquired . | . . . . . . . . Robots Built . | . . . . . . . . Authchips . | . . . . . . . . Time . | . . . . . . . . Total Robot Build Rating . | . . . . . . . . Part Schematics Acquired 4 | . . 2 1 1 . . . Parts Built . | . . . . . . . . Authchips . | . . . . . . . . Time . | . . . . . . . . Total Part Build Rating . | . . . . . . . . Parts Repaired 2 | . . . 1 . . . 1 Time 76 | . . . 32 . . . 44 Parts Recycled . | . . . . . . . . Recycled Matter . | . . . . . . . . Retrieved Matter . | . . . . . . . . Retrieved Components . | . . . . . . . . Parts Scanalyzed 4 | . . 2 1 1 . . . Part Schematics Acquired 4 | . . 2 1 1 . . . Parts Damaged 1 | . . . . 1 . . . Bothacking | -11 -10 -9 -8 -7 -7 -7 -7 ------------ Run | Yrd Mat Mat Mat Fac Was Fac Sto Used RIF Installer . | . . . . . . . . Robots Hacked . | . . . . . . . . Non-combat . | . . . . . . . . Combat . | . . . . . . . . Robot Hacks Applied . | . . . . . . . . Relay Couplers Released . | . . . . . . . . Fabnet Peak Effective % . | . . . . . . . . Robots Rewired . | . . . . . . . . Allies Hacked . | . . . . . . . . Hacks Repelled . | . . . . . . . . Allies | -11 -10 -9 -8 -7 -7 -7 -7 -------- Run | Yrd Mat Mat Mat Fac Was Fac Sto Total Allies 10 | . . . . . . . 10 Largest Group 10 | . . . . . . . 10 Highest-Rated Group 173 | . . . . . . . 173 Highest-Rated Ally 29 | . . . . . . . 29 Total Orders . | . . . . . . . . Ally Attacks 17 | . . . . . . . 17 Total Damage 227 | . . . . . . . 227 Kills 2 | . . . . . . . 2 Allies Corrupted . | . . . . . . . . Allies Melted . | . . . . . . . . Intel | -11 -10 -9 -8 -7 -7 -7 -7 ------- Run | Yrd Mat Mat Mat Fac Was Fac Sto Robot Analysis Total . | . . . . . . . . Derelict Logs Recovered . | . . . . . . . . Drone Launches . | . . . . . . . . Drone Recoveries . | . . . . . . . . Exploration | -11 -10 -9 -8 -7 -7 -7 -7 ------------- Run | Yrd Mat Mat Mat Fac Was Fac Sto Turns Passed 4122 | 95 546 476 950 595 95 693 672 Spaces Moved 2343 | 48 350 209 496 376 84 415 365 Core 64 | 6 . . . . 28 26 4 Treads 17 | . . . . . . . 17 Legs 2013 | 42 350 209 496 376 56 389 95 Wheels . | . . . . . . . . Hover . | . . . . . . . . Flight 249 | . . . . . . . 249 Fastest Speed 26 | 50 120 120 120 122 50 50 26 Average Speed 112 | 111 120 120 120 122 101 119 77 Slowest Speed 600 | 120 120 120 123 123 200 130 600 Overloaded Moves . | . . . . . . . . Propulsion Burnouts . | . . . . . . . . Robots Hopped . | . . . . . . . . Cave-ins Triggered 1 | . . 1 . . . . . Exploration Rate (%) 37 | 4 60 27 39 15 73 17 67 Regions Visited 7 Branch Regions 1 Pre-discovered Areas . | . . . . . . . . Known Exits Taken 4 | . 1 1 1 . . 1 . Unknown Exits Taken 1 | 1 . . . . . . . Scrap Searched . | . . . . . . . . Spaces Dug 5 | . 2 3 . . . . . Terrain Destroyed 12 | . 3 9 . . . . . Melee 4 | . 1 3 . . . . . Projectile 2 | . 2 . . . . . . AOE 6 | . . 6 . . . . . Terrain Rammed . | . . . . . . . . Walls Destroyed . | . . . . . . . . Machines Disabled . | . . . . . . . . Actions | -11 -10 -9 -8 -7 -7 -7 -7 --------- Run | Yrd Mat Mat Mat Fac Was Fac Sto Total 3357 | 67 428 342 734 463 90 554 679 Wait 553 | . 30 45 113 42 . 80 243 Move 2337 | 47 349 208 495 376 83 414 365 Hop . | . . . . . . . . Pick Up 41 | 3 9 6 8 6 . 6 3 Fast Attach 49 | 7 . 8 8 2 2 11 11 Attach 23 | . 2 7 2 5 3 2 2 Detach 5 | . . 2 1 . . 1 1 Swap 46 | 1 6 9 21 1 . 4 4 Drop 57 | . 8 7 22 3 1 9 7 Fire 185 | 9 23 39 64 28 1 21 . Melee 61 | . 1 11 . . . 6 43 Ram . | . . . . . . . . Kick . | . . . . . . . . Crush . | . . . . . . . . Escape Stasis . | . . . . . . . . Rewire . | . . . . . . . . Trap . | . . . . . . . . Miscellaneous . | . . . . . . . . Route ------- -11/Scrapyard -10/Materials (discovered 3 exits: *Mat x3) -9/Materials -8/Materials -7/Factory -7/Waste -7/Factory -7/Storage (discovered 1 exit: Rec) History --------- Turn | Location | Event 6 | -11/Scrapyard | Discovered new exit (range 15) 96 | -11/Scrapyard | Entered Materials 306 | -10/Materials | Build established: Mutant 315 | -10/Materials | Discovered new exit (range 8) 322 | -10/Materials | Identified exit to Materials 642 | -10/Materials | Entered another Materials area 642 | -9/Materials | Evolved 2 slots: Utility x2 856 | -9/Materials | Crushed by falling debris 924 | -9/Materials | Lost 7 parts (1p1n2u3w) 978 | -9/Materials | Core integrity fell below 50% 1092 | -9/Materials | Discovered new exit (range 16) 1116 | -9/Materials | Identified exit to Materials 1118 | -9/Materials | Entered another Materials area 1118 | -8/Materials | Evolved 2 slots: Propulsion x1, Utility x1 1180 | -8/Materials | Repaired Particle Gun 1256 | -8/Materials | Build established: Scavenger-Mutant 2004 | -8/Materials | Garrison activated, responded to threat 2060 | -8/Materials | Discovered new exit (range 6) 2066 | -8/Materials | Identified exit to Factory 2068 | -8/Materials | Entered Factory 2068 | -7/Factory | Evolved 2 slots: Propulsion x1, Utility x1 2415 | -7/Factory | Discovered new exit (range 15) 2663 | -7/Factory | Sucked down chute 2663 | -7/Factory | Entered Waste 2686 | -7/Waste | Spotted C-40 Crusher 2688 | -7/Waste | Spotted C-40 Crusher 2703 | -7/Waste | Crushed by Compactor (1 part destroyed, 2 dropped) 2706 | -7/Waste | Crushed by Compactor (1 part destroyed, 1 dropped) 2709 | -7/Waste | Crushed by Compactor (1 part destroyed, 2 dropped) 2713 | -7/Waste | Spotted C-40 Crusher 2714 | -7/Waste | Spotted C-40 Crusher 2715 | -7/Waste | Spotted C-40 Crusher 2735 | -7/Waste | Spotted C-40 Crusher 2740 | -7/Waste | Lost 4 parts (2n1u1w) 2747 | -7/Waste | Crushed by Compactor (1 part destroyed, 1 dropped) 2750 | -7/Waste | Discovered new exit (range 10) 2754 | -7/Waste | Identified exit to Factory 2758 | -7/Waste | Entered Factory 3337 | -7/Factory | Core integrity fell below 50% 3397 | -7/Factory | Discovered new exit (range 12) 3447 | -7/Factory | Identified exit to Storage 3451 | -7/Factory | Entered Storage 3547 | -7/Storage | Build established: Gladiator 3628 | -7/Storage | Lost 3 parts (3n) 3669 | -7/Storage | Core integrity fell below 20% 3706 | -7/Storage | Lost 3 parts (2n1w) 3825 | -7/Storage | Repaired Powered Hammer 4069 | -7/Storage | Assisted by bots powering up and referring to "LRC-V3" 4092 | -7/Storage | Garrison activated, responded to threat 4093 | -7/Storage | Identified exit to Recycling 4123 | -7/Storage | Destroyed by Y-54 Guardian with Flak Gun Last Messages --------------- 04092_ ALERT: Activating Garrison Access S001. 04092_ Connecting with Terminal... 04092_ Discarded Imp. Signal Interpreter. 04093_ D-53 Grenadier emerges from the garrison. 04093_ System corrupted: Energy discharge (-42). 04093_ Connecting with Terminal... >>Access(Branch) Found 1 branch access point: (65,12) Recycling Map updated. 04096_ Acquired Imp. Melee Analysis Suite. 04098_ T-07 Excavator destroyed. 04098_ Acquired 9 matter. 04098_ K-01 Serf collects debris. 04099_ U-05 Engineer lays Concrete. 04100_ Compression Vault explodes. 04100_ U-05 Engineer lays Concrete. 04108_ System corrupted: Heat flow error (+138). 04119_ Cld. VTOL Module destroyed. 04123_ Lgt. Nuclear Core destroyed. Map ----- +----------------------------------------------------+ | | | | | | | | | | | | | | | | | | | | | | | | | | | | | | | | | | | ??????????????????????????#??????????????????????? | | ???????????????########## ##?????????????????????? | | ???????????????# ####??????????????????? | | ################ "" #??????????????????? | | # """" """" """#??????????????????? | | + """" """" R"#??????????????????? | | # """" """" """???????????????????? | | +?#+######## # """" """"Y#?????????????????????? | | ????# ???# # @ #?????????????????????? | | ????# ???# ###############???????????????????? | | ????# ??# #????# #???????????????????? | | ????# ??# #????# #???????????????????? | | ????# ?+ #????# #???????????>???????? | | ????# ?# #????#! ! #???????????????????? | | ????# # ###### ! !#???????????????????? | | ????# # + #???????????????????? | | ????# + ###### #???????????????????? | | ????# ## ##????# #???????????????????? | | ????# ?# #?????# ! #???????????????????? | | ????# ??# #?????#####+#####??????????????????? | | ????# ??# #????????# ####???????????????? | | ????#####???#+#????????# ###?????????????? | | ???????????????????????+ ##### ?????? | | ?????????????? # ?????? | | ?????????????????? """ + ?????? | | ?????????????????? """ # ##### ????????? | | #######??????????? """ # #?????????????? | | ????????? ?# #?????????????? | | #??????????####?# #?????????????? | | #??????##########| #?????????????? | | """"" ???????# = #?????????????? | | """"??????????# = ####+###??????? | | """"??????????# ?????? | +----------------------------------------------------+ Best States ------------- Heat Dissipation 62 Energy Generation 18 Energy Capacity 310 Matter Stores 300 Matter Capacity 300 Sight Range 16 Robot Scan Range 15 Terrain Scan Range 16 Terrain Scan Density 110 Additional Mass Support 6 Base Temperature (-) 100 Armor Coverage 150 Evasion (%) 64 Targeting Accuracy 6 Recoil Reduction 4 Force Boost 20 Offensive Hacking 10 Item Schematics ----------------- Sensor Array | -9/Materials | Scanalyzed Signal Interpreter | -9/Materials | Scanalyzed Carbon-fiber Leg | -8/Materials | Scanalyzed Hvy. Deuterium Engine | -7/Factory | Scanalyzed Robot Schematics ------------------ None Fabricated ------------ Nothing Alien Tech Used ----------------- None Achievements -------------- None Challenges ------------ None Game ------ Seed InertialProjectionBox Manual? 0 Play Time 00:46:28 Cumulative 78.1 hours Start 2025.03.18 @ 18:15:09 End 2025.03.18 @ 21:31:24 Sessions 1 Manual Loads 0 Difficulty Rogue Special Mode None Game No. 120 Rogue 120 Adventurer 0 Explorer 0 Win Type - Total 1 Types 1/0/0/0/0/0/0/0/0 Lore% 30 Gallery% 46 Achievement% 39 Wizard Run 0 Options --------- Layout 1 ASCII 1 Keyboard 0 Movement Numpad Keybinds 0 Fullscreen 1 Font 24/Smallcaps Map View 50x35 Zoom Use 0% Tactical HUD 1 Map Filters NONE Filters NONE Steam 1 RUN: 2dd1ef45-2fd5-454e-b45e-eeefb1dd56a8